bitfinex/quotes_SOLUSD_20240716
["timestamp","ask_amount","ask_price","bid_price","bid_amount"]
[1721140781117,0.34,156.22,156.15,22.8023]
[1721140781306,0.17,156.23,156.19,22.408]
[1721140782099,6.4015,156.22,156.17,6.4028]
[1721140782298,6.7416,156.21,156.17,6.4028]
[1721140782496,0.17,156.2,156.17,6.4028]
[1721140783922,0.17,156.2,156.16,22.4122]
[1721140784221,6.5721,156.2,156.16,22.4122]
[1721140784420,0.17,156.19,156.16,16.0086]
[1721140784604,6.5724,156.19,156.14,6.4043]
[1721140784807,6.5732,156.18,156.13,16.0118]
[1721140785118,0.34,156.17,156.13,22.4166]
[1721140785333,45.34,156.17,156.1,16.0149]
[1721140785622,6.7436,156.17,156.12,6.4052]
[1721140786218,0.34,156.17,156.11,0.37161377]
[1721140786427,0.34,156.17,156.08,0.37161513]
[1721140786749,0.34,156.17,156.15,6.4039]
[1721140786895,0.34,156.17,156.15,7.68459222]
[1721140787408,0.34,156.17,156.14,22.415]
[1721140787621,0.17,156.16,156.14,22.415]
[1721140787815,6.7429,156.18,156.14,16.0107]
[1721140788019,0.34,156.18,156.14,23.69552952]
[1721140788532,0.34,156.18,156.15,1.28069884]
[1721140788712,0.34,156.19,156.14,22.4151]
[1721140788917,0.34,156.19,156.14,16.0107]
[1721140789509,0.34,156.19,156.14,23.69570277]
[1721140790344,15.0339,156.23,156.15,6.4039]
[1721140790500,20.0,156.22,156.14,16.0107]
[1721140790702,20.0,156.22,156.14,22.4151]
[1721140791302,20.0,156.22,156.14,16.0107]
[1721140791502,0.17,156.21,156.15,0.33217871]
[1721140791727,45.34,156.21,156.15,0.5297077]
[1721140791944,6.4031,156.18,156.14,16.0107]
[1721140792104,0.34,156.17,156.14,22.4151]
[1721140792303,0.17,156.17,156.14,22.4151]
[1721140792700,0.17,156.17,156.15,6.4039]
[1721140792931,0.17,156.18,156.15,6.4039]
[1721140793127,0.17,156.18,156.14,22.4151]
[1721140793439,0.17,156.18,156.14,16.0107]
[1721140793609,6.5731,156.18,156.14,22.4151]
[1721140793810,0.17,156.17,156.14,16.0107]
[1721140794062,0.17,156.17,156.15,6.4037]
[1721140794219,0.17,156.17,156.14,22.4151]
[1721140794422,6.7428,156.18,156.14,22.4151]
[1721140795031,0.34,156.18,156.14,22.4151]
[1721140795510,15.0339,156.23,156.11,32.0286]
[1721140795511,15.0339,156.23,156.16,16.0088]
[1721140795715,6.4017,156.21,156.17,6.4031]
[1721140796038,6.7421,156.2,156.16,16.0088]
[1721140796413,0.34,156.2,156.14,6.4041]
[1721140797239,6.4024,156.19,156.14,6.4041]
[1721140797410,0.34,156.18,156.15,6.404]
[1721140797831,0.34,156.18,156.14,6.4043]
[1721140798642,6.7429,156.18,156.14,6.4043]
[1721140798844,0.34,156.18,156.14,6.4043]
[1721140799307,6.7431,156.18,156.13,22.4165]
[1721140799935,6.7431,156.18,156.14,6.4044]
[1721140800337,0.34,156.18,156.13,16.0117]
[1721140800533,0.17,156.17,156.13,22.4163]
[1721140800846,0.34,156.19,156.15,6.4039]
[1721140801412,0.34,156.19,156.13,16.0117]
[1721140801811,6.4029,156.18,156.13,22.4163]
[1721140802014,0.34,156.17,156.14,7.68488754]
[1721140802232,0.17,156.17,156.15,7.68466847]
[1721140802434,0.17,156.17,156.15,6.404]
[1721140802649,6.5729,156.18,156.13,22.4164]
[1721140802814,0.17,156.17,156.13,22.4164]
[1721140803015,6.5733,156.17,156.13,22.4164]
[1721140803231,6.5733,156.17,156.14,6.4044]
[1721140803232,0.17,156.17,156.14,6.4044]
[1721140803433,0.34,156.18,156.15,6.4039]
[1721140804342,0.34,156.18,156.14,7.68499805]
[1721140804545,0.34,156.18,156.15,1.28061603]
[1721140804755,6.7429,156.18,156.13,22.4164]
[1721140805041,6.4034,156.17,156.13,16.0117]
[1721140805333,0.17,156.16,156.13,22.4165]
[1721140805552,0.17,156.16,156.13,16.0117]
[1721140805848,0.34,156.16,156.1,16.0149]
[1721140806148,6.4046,156.14,156.1,16.0149]
[1721140806318,6.4049,156.13,156.1,16.0149]
[1721140806527,0.17,156.12,156.1,16.0149]
[1721140807028,0.34,156.12,156.1,16.0149]
[1721140807558,0.34,156.12,156.09,6.4064]
[1721140807722,0.34,156.12,156.1,6.4061]
[1721140808057,0.34,156.13,156.1,6.4061]
[1721140808238,0.34,156.14,156.11,6.4057]
[1721140808427,0.34,156.14,156.12,6.4049]
[1721140808628,0.17,156.14,156.13,6.4049]
[1721140808831,15.8989,156.17,156.14,6.4043]
[1721140809088,6.4024,156.19,156.13,16.0119]
[1721140809255,6.4029,156.18,156.14,6.4041]
[1721140809418,6.4024,156.19,156.14,6.4043]
[1721140809625,6.4021,156.2,156.16,6.4036]
[1721140810149,6.4021,156.2,156.16,6.4035]
[1721140810352,6.4099,156.22,156.15,16.0098]
[1721140810353,6.4015,156.22,156.15,16.0098]
[1721140810553,6.4017,156.21,156.16,6.4035]
[1721140810753,6.4008,156.23,156.17,16.0072]
[1721140810954,16.5884,156.25,156.19,16.0056]
[1721140811121,6.4003,156.25,156.2,6.402]
[1721140811325,6.3998,156.26,156.21,6.4016]
[1721140811536,22.9871,156.29,156.23,22.4023]
[1721140811822,16.5884,156.29,156.2,16.0047]
[1721140812725,16.5884,156.29,156.17,16.0081]
[1721140813240,20.0,156.28,156.17,16.0081]
[1721140813440,6.4,156.25,156.19,6.402]
[1721140813647,6.7404,156.24,156.19,6.402]
[1721140813851,6.5704,156.24,156.19,6.402]
[1721140814149,0.17,156.23,156.19,6.402]
[1721140814357,16.5884,156.29,156.15,51.3096]
[1721140814554,16.5884,156.29,156.22,6.4011]
[1721140814936,6.4004,156.24,156.17,16.0071]
[1721140815138,6.4004,156.24,156.18,20.0]
[1721140815345,6.4004,156.24,156.18,26.4027]
[1721140815543,6.5711,156.23,156.18,6.4027]
[1721140815754,0.17,156.22,156.18,6.4027]
[1721140816537,0.17,156.22,156.17,16.0071]
[1721140816757,0.17,156.22,156.2,6.4018]
[1721140817346,0.17,156.22,156.19,6.4023]
[1721140817547,0.34,156.23,156.19,6.4023]
[1721140817755,0.34,156.23,156.2,6.402]
[1721140817942,0.34,156.23,156.18,6.4025]
[1721140818344,0.34,156.23,156.17,22.4102]
[1721140818541,0.34,156.23,156.18,6.4027]
[1721140819149,0.34,156.23,156.17,16.0071]
[1721140819150,6.4013,156.22,156.17,16.0071]
[1721140819357,0.34,156.23,156.17,16.0071]
[1721140819544,0.34,156.23,156.19,6.4021]
[1721140819956,0.34,156.23,156.18,6.4028]
[1721140819957,6.7408,156.23,156.18,6.4028]
[1721140820144,0.34,156.23,156.19,6.4023]
[1721140820541,0.34,156.23,156.17,22.4099]
[1721140820741,6.4013,156.22,156.17,22.4099]
[1721140820955,6.7409,156.23,156.18,6.4028]
[1721140821262,6.4017,156.21,156.17,22.4103]
[1721140821463,6.4013,156.22,156.17,22.4103]
[1721140821763,6.4013,156.22,156.18,6.4028]
[1721140821964,6.4013,156.22,156.17,22.4102]
[1721140822345,0.34,156.23,156.17,16.0071]
[1721140822541,0.34,156.23,156.14,16.0106]
[1721140822749,45.34,156.24,156.14,16.0106]
[1721140823459,45.34,156.24,156.17,6.4032]
[1721140823646,6.402,156.2,156.16,16.0089]
[1721140823849,0.17,156.21,156.17,6.4029]
[1721140824245,0.34,156.21,156.17,6.4029]
[1721140824443,6.4003,156.25,156.18,16.0066]
[1721140824752,0.17,156.24,156.2,6.4016]
[1721140824945,0.34,156.24,156.2,6.4016]
[1721140825146,6.7404,156.24,156.19,6.4023]
[1721140825665,6.7404,156.24,156.15,32.0201]
[1721140825666,0.34,156.24,156.15,16.0097]
[1721140825842,0.17,156.23,156.16,65.77968641]
[1721140826040,6.4013,156.22,156.17,6.403]
[1721140826255,6.4013,156.22,156.18,7.68303456]
[1721140826459,6.4005,156.24,156.19,6.4022]
[1721140826661,0.17,156.23,156.19,6.4022]
[1721140826864,6.5708,156.23,156.18,7.68293456]
[1721140827056,6.4012,156.22,156.18,7.68293456]
[1721140827449,6.4012,156.22,156.17,16.0077]
[1721140827450,6.4012,156.22,156.17,22.4108]
[1721140827664,6.4016,156.21,156.17,22.4108]
[1721140828060,6.4013,156.22,156.18,7.67960476]
[1721140828262,6.4013,156.22,156.17,22.4108]
[1721140828572,0.17,156.21,156.14,16.0111]
[1721140828788,6.4023,156.2,156.15,6.4037]
[1721140829151,6.4023,156.2,156.16,6.4036]
[1721140829347,6.4016,156.21,156.16,6.4036]
[1721140829778,6.402,156.2,156.16,6.4036]
[1721140829991,6.4025,156.19,156.15,6.404]
[1721140830270,6.4025,156.19,156.14,22.4154]
[1721140830851,0.17,156.18,156.09,21.8759]
[1721140831057,0.17,156.2,156.11,22.4197]
[1721140831058,0.17,156.19,156.11,22.4197]
[1721140831377,6.4039,156.16,156.12,0.36365638]
[1721140831598,6.7433,156.17,156.12,6.76885638]
[1721140832053,6.7433,156.17,156.13,6.4048]
[1721140832254,45.0,156.19,156.13,6.4048]
[1721140832255,6.4029,156.18,156.13,22.4162]
[1721140832490,6.4034,156.17,156.13,16.0117]
[1721140832649,0.17,156.19,156.13,16.0117]
[1721140832979,16.1019,156.23,156.16,22.4121]
[1721140833180,6.4012,156.22,156.17,6.76686642]
[1721140833396,6.4024,156.2,156.16,16.0088]
[1721140833684,6.4024,156.19,156.16,16.0088]
[1721140833973,6.4029,156.18,156.12,16.0123]
[1721140834475,16.0036,156.22,156.12,16.0123]
[1721140834665,6.4037,156.16,156.12,22.4176]
[1721140834980,6.4038,156.16,156.12,22.4176]
[1721140835384,45.0,156.21,156.09,15.3063]
[1721140835385,6.4041,156.15,156.11,6.4056]
[1721140835572,6.4045,156.14,156.1,6.406]
[1721140835773,6.4053,156.12,156.07,6.407]
[1721140835983,0.34,156.13,156.09,6.4063]
[1721140836194,6.745,156.13,156.09,6.4063]
[1721140836474,6.745,156.13,156.08,16.0169]
[1721140836475,6.4054,156.12,156.08,16.0169]
[1721140836680,0.34,156.13,156.05,16.4403]
[1721140836848,0.34,156.13,156.04,16.0205]
[1721140837254,6.4064,156.1,156.04,16.0205]
[1721140837486,6.4064,156.1,156.05,6.4078]
[1721140838582,6.7458,156.11,156.06,6.4077]
[1721140838787,6.4061,156.1,156.06,6.4077]
[1721140839285,6.7457,156.11,156.06,6.4077]
[1721140839454,6.4062,156.1,156.06,6.4077]
[1721140839872,6.7458,156.11,156.06,6.4077]
[1721140840985,0.34,156.11,156.04,22.4287]
[1721140841188,6.4078,156.06,156.01,32.4645]
[1721140841495,6.4078,156.06,156.02,6.4091]
[1721140841872,6.4084,156.05,156.01,16.0242]
[1721140842760,0.17,156.07,156.01,16.0242]
[1721140842961,0.17,156.08,156.03,6.4089]
[1721140843197,0.34,156.09,156.03,16.0219]
[1721140843369,6.4073,156.08,156.03,22.4308]
[1721140843689,6.4078,156.06,156.01,6.4095]
[1721140843868,6.4078,156.06,156.02,6.4093]
[1721140844101,6.4077,156.06,156.02,22.4322]
[1721140844258,6.4077,156.06,156.02,16.0229]
[1721140845281,0.34,156.09,155.97,48.0206]
[1721140845282,0.34,156.09,155.99,22.4364]
[1721140845484,0.17,156.07,155.99,22.4364]
[1721140845690,45.34,156.09,155.99,22.4364]
[1721140845866,45.34,156.09,156.0,6.4102]
[1721140846192,45.34,156.09,156.01,6.4098]
[1721140846367,45.34,156.09,156.02,6.4094]
[1721140847258,45.34,156.09,156.01,22.4335]
[1721140849091,6.4079,156.06,156.02,0.33413912]
[1721140849276,6.4077,156.07,156.02,6.74343912]
[1721140849591,6.4081,156.06,156.01,16.0237]
[1721140849790,6.4081,156.06,156.01,22.4331]
[1721140849968,6.4075,156.07,156.02,6.4093]
[1721140850163,6.4078,156.06,156.02,6.4093]
[1721140850668,6.4074,156.07,156.02,6.4093]
[1721140850865,45.34,156.09,156.01,22.4335]
[1721140851065,45.34,156.09,156.01,16.0237]
[1721140851268,61.3573,156.09,155.98,16.0273]
[1721140851879,6.4089,156.04,155.99,1.27650658]
[1721140852063,45.0,156.09,155.99,1.27650658]
[1721140852389,6.407,156.08,155.98,45.17]
[1721140852769,6.407,156.08,156.04,16.0211]
[1721140853283,22.1486,156.15,156.04,16.0211]
[1721140853494,6.4056,156.12,156.07,6.407]
[1721140853980,6.4058,156.11,156.06,22.4266]
[1721140854189,6.4058,156.11,156.07,6.4073]
[1721140854395,22.1486,156.15,156.08,16.0168]
[1721140854766,6.70268348,156.18,156.11,16.014]
[1721140854989,22.1486,156.19,156.11,16.014]
[1721140855188,22.1486,156.19,156.1,6.4057]
[1721140855483,22.1486,156.19,156.1,16.0146]
[1721140855878,16.0701,156.19,156.1,16.0146]
[1721140856079,6.4031,156.18,156.13,6.4049]
[1721140856286,6.4034,156.17,156.12,6.4053]
[1721140856589,6.4033,156.17,156.13,1.28060052]
[1721140858286,6.4037,156.16,156.13,1.28060052]
[1721140858492,6.4033,156.17,156.14,1.28043692]
[1721140859575,6.4033,156.17,156.13,1.28043692]
[1721140860082,6.4037,156.16,156.12,6.4052]
[1721140860286,6.4042,156.15,156.11,6.4056]
[1721140860773,6.4037,156.16,156.11,6.4056]
[1721140861169,6.403,156.18,156.13,6.4048]
[1721140861390,16.0046,156.21,156.12,22.4179]
[1721140861570,6.4033,156.17,156.12,22.4178]
[1721140861776,6.4029,156.18,156.13,6.4048]
[1721140862086,6.4036,156.17,156.12,22.4179]
[1721140862391,6.4036,156.17,156.13,6.4049]
[1721140862692,6.4029,156.18,156.13,6.4049]
[1721140863293,6.4023,156.2,156.13,16.0113]
[1721140863595,6.4013,156.22,156.17,6.4031]
[1721140864110,6.4017,156.21,156.16,6.4036]
[1721140864288,6.4021,156.2,156.15,28.8838]
[1721140864974,16.0,156.25,156.15,28.8838]
[1721140864975,6.4017,156.21,156.17,6.403]
[1721140865300,15.4003,156.27,156.18,6.4027]
[1721140865511,45.34,156.26,156.18,6.4027]
[1721140865722,6.4009,156.23,156.18,6.4027]
[1721140865928,6.4009,156.23,156.19,6.4023]
[1721140866318,6.4009,156.23,156.18,6.4027]
[1721140867398,6.4004,156.24,156.19,1.2777768]
[1721140867600,6.3998,156.26,156.21,6.4015]
[1721140867817,6.3998,156.26,156.22,1.27998582]
[1721140868207,32.3038,156.31,156.21,6.4015]
[1721140868208,6.4,156.25,156.21,6.4015]
[1721140868408,6.3997,156.26,156.21,6.4015]
[1721140869028,6.4,156.25,156.21,6.4015]
[1721140869205,6.4,156.25,156.2,6.4019]
[1721140869821,6.3997,156.26,156.21,6.4014]
[1721140870015,0.17,156.27,156.19,16.0054]
[1721140870212,45.34,156.28,156.19,22.4078]
[1721140870420,6.4004,156.25,156.2,6.4018]
[1721140870916,6.3996,156.26,156.21,6.4014]
[1721140871120,6.3996,156.26,156.22,6.4011]
[1721140872228,6.3996,156.26,156.21,22.4051]
[1721140872531,6.3996,156.26,156.22,6.4011]
[1721140872714,6.3991,156.27,156.22,6.4011]
[1721140873025,16.3094,156.31,156.21,16.0036]
[1721140873026,16.3094,156.31,156.24,6.4002]
[1721140873233,6.3999,156.26,156.21,12.954]
[1721140873435,6.3994,156.27,156.22,6.4011]
[1721140873616,15.9955,156.3,156.22,6.4011]
[1721140873814,6.3993,156.27,156.23,6.4008]
[1721140874015,6.4001,156.25,156.21,12.9543]
[1721140874201,6.4001,156.25,156.21,6.5528]
[1721140874704,15.9955,156.3,156.22,6.4011]
[1721140875021,0.17,156.29,156.21,12.9543]
[1721140875323,0.34,156.29,156.21,12.9543]
[1721140875718,0.34,156.29,156.21,6.5528]
[1721140875719,6.4004,156.24,156.21,6.5528]
[1721140876225,6.4001,156.25,156.21,12.9544]
[1721140876426,6.3996,156.26,156.21,12.9544]
[1721140876638,0.34,156.29,156.21,6.5528]
[1721140876803,0.34,156.29,156.22,6.4011]
[1721140877007,6.4003,156.25,156.21,6.5528]
[1721140877222,6.4014,156.22,156.17,31.4603]
[1721140877905,6.4009,156.23,156.17,31.4603]
[1721140878130,6.4,156.25,156.2,6.4017]
[1721140878320,6.4008,156.23,156.19,16.0056]
[1721140878842,6.4009,156.23,156.19,16.0056]
[1721140879004,16.0007,156.25,156.17,15.4529]
[1721140879213,6.4019,156.21,156.17,21.8561]
[1721140879718,0.17,156.24,156.17,21.8561]
[1721140879719,6.4013,156.22,156.17,21.8561]
[1721140880129,0.17,156.24,156.18,6.4027]
[1721140880427,31.9918,156.29,156.19,6.402]
[1721140880623,45.0,156.28,156.19,6.402]
[1721140880826,0.34,156.27,156.19,6.402]
[1721140881011,16.6535,156.32,156.2,6.4019]
[1721140881206,16.6535,156.32,156.18,16.0066]
[1721140881207,6.6535,156.32,156.18,16.0066]
[1721140881425,16.6535,156.32,156.21,6.4015]
[1721140881606,16.6535,156.32,156.2,16.0048]
[1721140881812,10.0,156.3,156.17,31.4603]
[1721140882009,10.0,156.3,156.17,37.8634]
[1721140882315,55.17,156.29,156.17,31.4603]
[1721140882522,0.17,156.28,156.17,37.8635]
[1721140882714,0.17,156.28,156.18,6.4027]
[1721140883129,0.17,156.28,156.17,37.8635]
[1721140883430,10.0,156.27,156.17,15.4529]
[1721140883619,45.17,156.26,156.15,6.0958]
[1721140883821,0.17,156.25,156.15,6.0958]
[1721140884046,15.5787,156.25,156.15,6.0958]
[1721140884211,45.17,156.24,156.15,6.0958]
[1721140884533,16.0033,156.22,156.15,6.0958]
[1721140884730,6.4025,156.19,156.15,6.0958]
[1721140885238,16.0033,156.22,156.14,16.0108]
[1721140885415,6.4033,156.17,156.14,16.0108]
[1721140885614,6.4028,156.18,156.14,22.4152]
[1721140887044,6.4028,156.18,156.14,16.0108]
[1721140887731,6.4033,156.17,156.13,16.4678]
[1721140888048,6.403,156.18,156.13,22.8724]
[1721140888947,6.403,156.18,156.14,6.4044]
[1721140889522,6.403,156.18,156.13,32.4798]
[1721140889523,0.34,156.21,156.16,6.4036]
[1721140889718,0.34,156.21,156.15,6.4039]
[1721140890434,45.0,156.24,156.16,6.4035]
[1721140890744,0.34,156.23,156.16,7.36024345]
[1721140891038,15.4087,156.25,156.17,22.4106]
[1721140891240,15.4087,156.25,156.18,7.35942093]
[1721140891538,22.85997968,156.29,156.19,16.0058]
[1721140891743,22.85997968,156.29,156.19,22.4081]
[1721140891914,6.4007,156.24,156.19,22.4081]
[1721140892119,6.4007,156.24,156.2,1.2801671]
[1721140892842,15.9983,156.27,156.17,12.5418]
[1721140893036,6.4013,156.22,156.17,12.5418]
[1721140893247,15.9983,156.27,156.17,6.139]
[1721140893539,0.34,156.26,156.17,6.139]
[1721140893736,16.0006,156.25,156.17,6.139]
[1721140893948,0.34,156.24,156.17,6.139]
[1721140894145,16.0027,156.23,156.13,38.7615]
[1721140894335,6.4025,156.19,156.14,6.4044]
[1721140894544,6.4025,156.19,156.15,6.404]
[1721140894935,0.34,156.22,156.14,6.4043]
[1721140895237,6.4033,156.17,156.13,38.7615]
[1721140895450,6.4025,156.19,156.14,6.4043]
[1721140895927,6.4025,156.19,156.15,6.4039]
[1721140896126,6.4029,156.18,156.14,6.4044]
[1721140896326,45.34,156.22,156.13,22.7496]
[1721140896547,6.4029,156.18,156.13,29.1543]
[1721140897354,6.4025,156.19,156.14,6.4044]
[1721140897647,6.4025,156.19,156.13,22.7496]
[1721140897648,6.4029,156.18,156.13,29.1544]
[1721140898431,6.4029,156.18,156.14,6.4044]
[1721140898756,6.4025,156.19,156.15,6.404]
[1721140898937,6.4031,156.18,156.13,29.1541]
[1721140899253,6.4024,156.19,156.14,1.27515307]
[1721140899436,6.4024,156.19,156.15,7.6790714]
[1721140899748,6.4024,156.19,156.15,1.2750714]
[1721140900754,6.4029,156.18,156.14,22.4152]
[1721140900954,6.4032,156.17,156.14,16.0109]
[1721140901326,6.4029,156.18,156.14,16.0109]
[1721140901834,32.1073,156.22,156.13,22.7496]
[1721140902032,16.0054,156.2,156.13,16.4678]
[1721140902243,16.0054,156.2,156.09,6.1544]
[1721140902244,6.4046,156.14,156.1,6.406]
[1721140902639,16.0077,156.18,156.11,6.4056]
[1721140902849,6.4045,156.14,156.1,16.0147]
[1721140903341,6.4045,156.14,156.1,22.4207]
[1721140903548,0.34,156.17,156.1,22.4207]
[1721140903930,6.4049,156.13,156.09,12.5608]
[1721140904131,6.4049,156.13,156.09,6.4064]
[1721140904535,0.34,156.17,156.08,22.621]
[1721140904729,6.405,156.13,156.08,16.2141]
[1721140904952,6.405,156.13,156.08,22.6209]
[1721140905656,6.405,156.13,156.09,6.4065]
[1721140905834,6.4045,156.14,156.09,6.4065]
[1721140906044,6.4045,156.14,156.1,6.406]
[1721140906841,45.34,156.17,156.1,6.406]
[1721140907364,45.34,156.17,156.1,6.4058]
[1721140908352,45.34,156.17,156.09,22.4224]
[1721140909251,45.34,156.17,156.1,6.4061]
[1721140909629,45.34,156.17,156.09,22.4224]
[1721140909944,6.4053,156.13,156.09,16.016]
[1721140910335,6.4053,156.13,156.09,22.4224]
[1721140911157,6.4046,156.14,156.09,22.4224]
[1721140911553,0.34,156.17,156.09,16.016]
[1721140911735,0.34,156.17,156.12,6.405]
[1721140912057,6.4036,156.17,156.12,6.4052]
[1721140912234,6.4038,156.16,156.12,6.4052]
[1721140913842,6.4041,156.15,156.11,16.0141]
[1721140914039,6.4049,156.14,156.09,6.4064]
[1721140914237,6.405,156.13,156.09,6.4064]
[1721140915256,6.4046,156.14,156.1,6.4061]
[1721140915635,6.4049,156.13,156.09,6.4064]
[1721140915833,6.4054,156.12,156.08,32.2313]
[1721140916361,6.4054,156.12,156.08,38.6381]
[1721140917352,6.4054,156.12,156.05,6.2864]
[1721140917353,0.17,156.13,156.05,6.2864]
[1721140917556,16.4047,156.16,156.05,6.2864]
[1721140917736,0.17,156.15,156.09,6.4064]
[1721140917932,0.34,156.15,156.09,6.4064]
[1721140918140,45.34,156.15,156.09,6.4064]
[1721140918756,45.34,156.15,156.08,6.4068]
[1721140919252,45.34,156.15,156.08,6.4069]
[1721140920153,45.34,156.15,156.09,6.4064]
[1721140920356,0.34,156.15,156.1,6.4059]
[1721140921053,6.4048,156.14,156.09,22.4223]
[1721140921358,6.4049,156.13,156.09,22.4223]
[1721140921958,6.4053,156.12,156.09,16.0159]
[1721140922662,6.4047,156.14,156.09,16.0159]
[1721140922870,6.4041,156.15,156.11,6.4057]
[1721140923161,6.4042,156.15,156.1,6.406]
[1721140923365,6.4042,156.15,156.11,6.4056]
[1721140923543,6.4047,156.14,156.09,22.4223]
[1721140923743,6.4047,156.14,156.1,6.406]
[1721140924272,15.9442,156.2,156.11,16.014]
[1721140924436,6.4041,156.15,156.11,22.4197]
[1721140924645,6.4046,156.14,156.11,16.014]
[1721140924962,6.4046,156.14,156.1,22.9672]
[1721140925175,6.4041,156.15,156.11,6.4056]
[1721140925337,6.4038,156.16,156.11,6.4056]
[1721140925667,6.4038,156.16,156.1,32.5762]
[1721140925668,6.4024,156.2,156.16,6.4034]
[1721140925869,31.5223,156.25,156.15,6.4038]
[1721140926036,6.4024,156.19,156.15,6.4038]
[1721140926243,6.4021,156.2,156.15,6.4038]
[1721140926458,6.4017,156.21,156.17,6.4031]
[1721140926669,31.5223,156.25,156.12,6.6499]
[1721140926670,6.4013,156.22,156.18,6.4025]
[1721140926847,6.4013,156.22,156.17,6.4032]
[1721140927052,15.522,156.25,156.16,31.2897]
[1721140927338,6.4024,156.2,156.16,31.2897]
[1721140928469,16.0018,156.24,156.13,16.012]
[1721140928667,6.4029,156.18,156.14,6.4041]
[1721140928861,16.0018,156.24,156.15,6.4038]
[1721140929045,6.4021,156.2,156.15,6.404]
[1721140929667,6.4016,156.21,156.16,6.4034]
[1721140929867,6.4025,156.19,156.15,16.0096]
[1721140930275,6.4021,156.2,156.15,22.4135]
[1721140930460,0.34,156.23,156.17,6.4031]
[1721140930772,6.4023,156.2,156.15,22.4135]
[1721140931174,6.4017,156.21,156.16,6.4036]
[1721140931474,6.4012,156.22,156.17,22.4107]
[1721140931972,6.4004,156.24,156.19,6.4023]
[1721140932552,15.9983,156.27,156.2,6.4019]
[1721140932759,0.34,156.26,156.2,6.4019]
[1721140932970,15.5697,156.29,156.19,22.6333]
[1721140933375,15.5697,156.29,156.2,6.4017]
[1721140933560,15.5697,156.29,156.19,22.6333]
[1721140933561,15.5697,156.29,156.19,29.0356]
[1721140933958,15.5697,156.29,156.2,6.4019]
[1721140934283,45.0,156.28,156.2,6.4019]
[1721140934588,0.17,156.27,156.19,22.6333]
[1721140935085,0.17,156.27,156.17,6.4031]
[1721140935256,10.17,156.27,156.17,6.4031]
[1721140935584,6.4016,156.21,156.16,22.4124]
[1721140935872,6.4017,156.21,156.16,22.4122]
[1721140936079,0.17,156.26,156.16,16.0089]
[1721140936379,6.4009,156.23,156.16,16.0089]
[1721140936574,6.4002,156.25,156.2,6.4019]
[1721140936790,6.5702,156.25,156.2,6.4019]
[1721140936965,0.17,156.25,156.18,22.4093]
[1721140937575,0.17,156.25,156.18,16.0068]
[1721140937756,0.34,156.26,156.18,16.0068]
[1721140937952,6.4004,156.24,156.19,6.4021]
[1721140938276,6.4009,156.23,156.19,6.4021]
[1721140938477,6.4009,156.23,156.18,22.4095]
[1721140939259,0.34,156.26,156.18,16.0068]
[1721140939464,6.4011,156.23,156.19,6.4024]
[1721140939657,0.34,156.26,156.14,15.7703]
[1721140939658,6.4033,156.17,156.14,15.7703]
[1721140939867,6.404,156.16,156.12,16.0129]
[1721140940053,6.404,156.16,156.12,22.4182]
[1721140940467,16.0056,156.2,156.11,6.2976]